fUST/lending_fUST_20240321
["ID","MTS","AMOUNT","RATE_DAILY","PERIOD"]
[319790110,1710966766274,5000.0,0.001,3]
[319790111,1710966772328,14191.7940285,0.001,120]
[319790112,1710966772357,21492.45491095,0.001,120]
[319790113,1710966773195,-25000.0,0.001,120]
[319790114,1710966778032,500.0,0.00079993,31]
[319790115,1710966778320,500.0,0.00080267,31]
[319790116,1710966778897,500.0,0.00080541,31]
[319790117,1710966779616,500.0,0.00080815,31]
[319790118,1710966780092,500.0,0.00081089,31]
[319790119,1710966780401,500.0,0.00081363,31]
[319790120,1710966780682,500.0,0.00081637,31]
[319790121,1710966780952,500.0,0.00081911,31]
[319790122,1710966781332,500.0,0.00082185,31]
[319790123,1710966781621,500.0,0.00082459,31]
[319790124,1710966781918,500.0,0.00082733,31]
[319790125,1710966782205,500.0,0.00083007,31]
[319790126,1710966782491,500.0,0.00083281,31]
[319790127,1710966782775,500.0,0.00083555,31]
[319790128,1710966783058,500.0,0.00083829,31]
[319790129,1710966783371,500.0,0.00084103,31]
[319790130,1710966783648,500.0,0.00084377,31]
[319790131,1710966783908,500.0,0.00084651,31]
[319790132,1710966784161,500.0,0.00084925,31]
[319790133,1710966784467,500.0,0.00085199,31]
[319790134,1710966784724,500.0,0.00085473,31]
[319790135,1710966784998,500.0,0.00085747,31]
[319790136,1710966785327,101.48464764,0.00086021,31]
[319790137,1710966799810,575.30079489,0.00079992,31]
[319790138,1710966805168,500.0,0.00079992,31]
[319790139,1710966809891,203.23682034,0.00079992,31]
[319790140,1710966815361,500.0,0.00079992,31]
[319790141,1710966819395,500.0,0.00079992,31]
[319790142,1710966825060,401.5795272,0.00079991,31]
[319790143,1710966840988,254.78094714,0.00079991,31]
[319790144,1710966842748,500.0,0.00079991,31]
[319790145,1710966853919,506.55542615,0.00079991,31]
[319790146,1710966856350,500.0,0.00079998,31]
[319790147,1710966858530,925.22,0.00079991,31]
[319790148,1710966859566,500.0,0.00079991,31]
[319790149,1710966869374,500.0,0.00079995,31]
[319790150,1710966878908,500.0,0.00079991,31]
[319790151,1710966898504,500.0,0.00079995,31]
[319790152,1710966904936,500.0,0.00079995,31]
[319790153,1710966911070,500.0,0.00079991,31]
[319790154,1710966912464,500.0,0.00079991,31]
[319790155,1710966912908,500.0,0.00079998,31]
[319790156,1710966923071,500.0,0.00079998,31]
[319790157,1710966926876,500.0,0.00079991,31]
[319790158,1710966928438,500.0,0.00079991,31]
[319790159,1710966929572,500.0,0.00079991,31]
[319790160,1710966941223,500.0,0.00079998,31]
[319790161,1710966948481,500.0,0.00079995,31]
[319790162,1710966951477,500.0,0.00079998,31]
[319790163,1710966953220,500.0,0.00079998,31]
[319790164,1710966955254,500.0,0.00079991,31]
[319790165,1710966955698,500.0,0.00079998,31]
[319790166,1710966959694,272.25416771,0.00079998,31]
[319790167,1710966960385,500.0,0.00079991,31]
[319790168,1710966961466,500.0,0.00079995,31]
[319790169,1710966979178,537.41535236,0.00079992,31]
[319790170,1710966981209,577.94,0.00079998,31]
[319790171,1710967008620,546.06,0.00079998,31]
[319790173,1710967010812,500.0,0.00079998,31]
[319790174,1710967015064,500.0,0.00079998,31]
[319790175,1710967018872,500.0,0.00079998,31]
[319790176,1710967032500,500.0,0.00079998,31]
[319790178,1710967052829,377.1627867,0.00048751,30]
[319790179,1710967053300,377.1627867,0.00065828,120]
[319790180,1710967053797,377.1627867,0.00076116,120]
[319790289,1710967123797,176.56558756,0.00076116,4]
[319790290,1710967132562,840.36951938,0.00076116,7]
[319790291,1710967136610,2610.55941281,0.00075355,4]
[319790292,1710967143750,176.56558756,0.00076116,4]
[319790293,1710967163950,107.34588335,0.00076116,4]
[319790305,1710967265190,2599.93937374,0.0002123,2]
[319790306,1710967302261,154.86062544,0.0002123,2]
[319790307,1710967322299,257.22180764,0.0002123,2]
[319790308,1710967352954,339.44650803,0.00059607,120]
[319790309,1710967353419,339.44650803,0.00060046,120]
[319790310,1710967385154,500.67078008,0.00062977,31]
[319790328,1710967534667,20808.41439704,0.00021,2]
[319790329,1710967534692,25000.0,0.00021,2]
[319790330,1710967534716,22572.23070631,0.00021,2]
[319790331,1710967534741,11971.27566494,0.00021,2]
[319790338,1710967714402,-316.81674083,0.00052713,60]
[319790339,1710967714426,-2641.29807362,0.00057514,4]
[319790340,1710967714451,-316.81674083,0.00057515,120]
[319790341,1710967714477,-500.0,0.00065753,2]
[319790342,1710967714502,-441.56079529,0.00066,2]
[319790343,1710967714527,-316.81674083,0.00066347,120]
[319790344,1710967714552,-728.15452025,0.00078503,7]
[319790345,1710967714578,-150.8642222,0.00078504,2]
[319790346,1710967714602,-19129.505925,0.00078982,7]
[319790347,1710967714626,-458.16624115,0.00078983,2]
[319790348,1710967715569,-24441.83375885,0.00078983,2]
[319790349,1710967715597,-301.7284444,0.00079824,4]
[319790350,1710967715624,-256.43779675,0.00079991,31]
[319790351,1710967716495,-243.56220325,0.00079991,31]
[319790352,1710967716520,-180.27344571,0.00080252,7]
[319790353,1710967716545,-325.68369138,0.00080252,7]
[319790354,1710967716573,-2602.41354396,0.00080255,7]
[319790355,1710967716598,-500.0,0.00080256,120]
[319790356,1710967716623,-500.0,0.00080256,120]
[319790357,1710967716650,-500.0,0.00080256,120]
[319790358,1710967716676,-500.0,0.00080256,120]
[319790359,1710967716701,-500.0,0.00080256,120]
[319790360,1710967716729,-500.0,0.00080256,120]
[319790361,1710967716753,-500.0,0.00080256,120]
[319790362,1710967716777,-500.0,0.00080256,120]
[319790363,1710967716801,-277.56577105,0.00080256,120]
[319790364,1710967716826,-500.0,0.00080256,120]
[319790365,1710967716850,-500.0,0.00080256,120]
[319790366,1710967716873,-500.0,0.00080256,120]
[319790367,1710967716898,-500.0,0.00080256,120]
[319790368,1710967716921,-500.0,0.00080256,120]
[319790369,1710967716945,-500.0,0.00080256,120]
[319790370,1710967716969,-500.0,0.00080256,120]
[319790371,1710967716992,-500.0,0.00080256,120]
[319790372,1710967717016,-500.0,0.00080256,120]
[319790373,1710967717040,-500.0,0.00080256,120]
[319790374,1710967717063,-500.0,0.00080256,120]
[319790375,1710967717087,-500.0,0.00080256,120]
[319790376,1710967717110,-500.0,0.00080256,120]
[319790377,1710967717134,-500.0,0.00080256,120]
[319790378,1710967717158,-500.0,0.00080256,120]
[319790379,1710967717181,-500.0,0.00080256,120]
[319790380,1710967717205,-500.0,0.00080256,120]
[319790381,1710967717233,-500.0,0.00080256,120]
[319790382,1710967717257,-250.0,0.00080256,120]
[319790383,1710967717386,-500.0,0.00080256,31]
[319790384,1710967717412,-500.0,0.00080256,31]
[319790385,1710967717438,-2500.0,0.00080257,61]
[319790386,1710967717467,-208.43611796,0.00080257,7]
[319790387,1710967717496,-1116.70585683,0.00080257,2]
[319790388,1710967717521,-3295.35936986,0.00080257,4]
[319790389,1710967717628,-25000.0,0.00080257,4]
[319790390,1710967718571,-25000.0,0.00080257,4]
[319790391,1710967719500,-25000.0,0.00080257,4]
[319790393,1710967720487,-25000.0,0.00080257,4]
[319790394,1710967721479,-25000.0,0.00080257,4]
[319790398,1710967766393,2527.22211595,0.00035616,120]
[319790399,1710967766419,2471.76033323,0.00035616,120]
[319790400,1710967766443,5001.01755082,0.00035616,120]
[319790402,1710967787999,1248.98244918,0.00035616,120]
[319790510,1710967832243,-1606.41755082,0.00035616,120]
[319790511,1710967832254,-484.21,0.00079991,31]
[319790513,1710967832264,-500.0,0.00080256,31]
[319790514,1710967832273,-886.67,0.00080256,31]
[319790516,1710967832284,-500.0,0.00080256,31]
[319790517,1710967832297,-500.0,0.00080256,21]
[319790518,1710967832307,-500.0,0.00080256,31]
[319790519,1710967832317,-10080.93519384,0.00080257,4]
[319790520,1710967832328,-3628.45810022,0.00080258,7]
[319790522,1710967832338,-181.0,0.00080265,31]
[319790525,1710967832349,-500.0,0.0008053,31]
[319790528,1710967832359,-494.85,0.0008053,31]
[319790531,1710967832369,-373.45915512,0.0008053,31]
[319790534,1710967832382,-513.21084488,0.0008053,31]
[319790536,1710967832393,-500.0,0.0008053,31]
[319790546,1710967832403,-35.03415512,0.0008053,21]
[319790548,1710967832540,-455.46000005,0.0008053,21]
[319790550,1710967832555,-9.50584483,0.0008053,21]
[319790552,1710967832565,-500.0,0.0008053,31]
[319790554,1710967832574,-9.88415517,0.00080799,120]
[319791123,1710967838575,-150.84915085,0.00047566,2]
[319791124,1710967838585,-301.6983017,0.00048366,4]
[319791125,1710967838595,-603.3966034,0.00049179,7]
[319791126,1710967838606,-150.84915085,0.00071349,2]
[319791127,1710967838615,-1649.21530726,0.00080799,120]
[319791128,1710967838628,-1280.03097109,0.00080799,120]
[319791129,1710967838640,-2060.86956648,0.00080799,120]
[319791130,1710967838650,-403.94793746,0.00080804,31]
[319791131,1710967838659,-886.67,0.00080804,31]
[319791132,1710967838669,-500.0,0.00080804,31]
[319791133,1710967838678,-500.0,0.00080804,21]
[319791134,1710967838687,-493.97882089,0.00080804,31]
[319791135,1710967838696,-886.67,0.00081078,31]
[319791136,1710967838706,-500.0,0.00081078,31]
[319791137,1710967838715,-500.0,0.00081078,21]
[319791138,1710967838724,-886.67,0.00081352,31]
[319791139,1710967838733,-500.0,0.00081352,21]
[319791140,1710967838743,-886.67,0.00081626,31]
[319791141,1710967838752,-500.0,0.00081626,21]
[319791142,1710967838761,-886.67,0.000819,31]
[319791143,1710967838770,-599.74,0.000819,21]
[319791144,1710967838779,-886.67,0.00082174,31]
[319791145,1710967838788,-886.67,0.00082448,31]
[319791147,1710967838799,-886.67,0.00082722,31]
[319791148,1710967838809,-886.67,0.00082996,31]
[319791150,1710967838818,-316.81674083,0.00083268,120]
[319791152,1710967838827,-886.67,0.0008327,31]
[319791153,1710967838836,-500.0,0.0008349,120]
[319791154,1710967838846,-886.67,0.00083544,31]
[319791155,1710967838855,-886.67,0.00083818,31]
[319791156,1710967838864,-886.67,0.00084092,31]
[319791157,1710967838873,-886.67,0.00084366,31]
[319791158,1710967838882,-142.14367395,0.0008464,31]
[319791159,1710967838894,-412.80292201,0.0008464,31]
[319791160,1710967838905,-254.93586496,0.0008464,31]
[319791161,1710967838916,-76.78753908,0.0008464,31]
[319791162,1710967838925,-886.67,0.00084914,31]
[319791163,1710967838934,-886.67,0.00085188,31]
[319791164,1710967838944,-886.67,0.00085462,31]
[319791165,1710967838952,-886.67,0.00085736,31]
[319791166,1710967838962,-886.67,0.0008601,31]
[319791167,1710967838971,-886.67,0.00086284,31]
[319791168,1710967838979,-886.8044251,0.00086558,31]
[319791169,1710967838988,-5000.0,0.00089209,120]
[319791170,1710967838998,-500.0,0.00092579,120]
[319791171,1710967839007,-500.0,0.00092579,120]
[319791172,1710967839016,-500.0,0.00092579,120]
[319791173,1710967839025,-500.0,0.00092579,120]
[319791174,1710967839034,-500.0,0.00092579,120]
[319791175,1710967839044,-500.0,0.00092579,120]
[319791176,1710967839053,-500.0,0.00092579,120]
[319791177,1710967839062,-308.26973131,0.00092579,120]
[319791178,1710967839071,-500.0,0.00092579,120]
[319791179,1710967839081,-500.0,0.00092579,120]
[319791180,1710967839090,-63196.36134935,0.0009258,2]
[319791181,1710967839266,-6860.10867867,0.0009258,2]
[319791218,1710967840596,-1614.33401128,0.0009258,2]
[319791358,1710967843746,-1403.94793746,0.00082469,120]
[319791418,1710967846330,-1525.76974277,0.000529,30]
[319791419,1710967846340,-500.0,0.00080256,31]
[319791420,1710967846349,-500.0,0.0008053,31]
[319791422,1710967846359,-553.97,0.00080804,31]
[319791424,1710967846369,-249.89794054,0.00082469,120]
[319791425,1710967846382,-10149.46231669,0.0009258,2]
[319791427,1710967846394,-415.11121662,0.0009258,2]
[319791428,1710967846416,-721.93668965,0.0009258,2]
[319791431,1710967858832,-924.0674815,0.00035616,4]
[319791432,1710967858853,-9776.32644215,0.00035616,4]
[319791433,1710967858904,-154.86062544,0.00035616,2]
[319791434,1710967858941,160.04343208,0.0005,60]
[319791435,1710967860943,683.2104041,0.00052899,4]
[319791437,1710967863543,1345.60368921,0.00052899,4]
[319791438,1710967865536,275.2653267,0.00052899,4]
[319791439,1710967866084,2484.09040037,0.00052899,2]
[319791440,1710967866254,1533.39496255,0.00052899,4]
[319791441,1710967869434,108935.44877607,0.00052899,30]
[319791442,1710967869456,126272.31154017,0.00052899,30]
[319791448,1710967884083,-126272.31154017,0.00052899,30]
[319791449,1710967889936,-126272.31154017,0.00052899,30]
[319791450,1710967892569,-196.18398618,0.00035616,2]
[319791451,1710967892603,-169.94400268,0.00052898,4]
[319791452,1710967892632,-49633.87201114,0.00052899,30]
[319791453,1710967894368,-50000.0,0.00052899,30]
[319791454,1710967895400,-50000.0,0.00052899,30]
[319791455,1710967896338,-50000.0,0.00052899,30]
[319791456,1710967897309,-50000.0,0.00052899,30]
[319791457,1710967898148,-50000.0,0.00052899,30]
[319791458,1710967898997,-50000.0,0.00052899,30]
[319791459,1710967899948,-50000.0,0.00052899,30]
[319791460,1710967901041,-50000.0,0.00052899,30]
[319791461,1710967902100,-50000.0,0.00052899,30]
[319791462,1710967904254,-380596.13526996,0.00052899,30]
[319791463,1710967904274,-119403.86473004,0.000529,30]
[319791464,1710967904980,-6868.44681013,0.000529,30]
[319791465,1710967908447,155.06512735,0.00052899,4]
[319791466,1710967909336,154.86062544,0.00052899,120]
[319791467,1710968010400,23924.540001,0.00030515,7]
[319791468,1710968010426,17143.54985446,0.00030515,7]
[319791469,1710968031988,1911.74320778,0.0002,2]
[319791470,1710968054859,205.20103912,0.000195,2]
[319791472,1710968075369,2911.4883865,0.000393,2]
[319791473,1710968078076,296.481,0.00035,7]
[319791475,1710968623199,10000.0,0.00045,2]
[319791476,1710968644041,1739.14,0.00045,2]
[319791480,1710968811034,501.54180628,0.000429,2]
[319791481,1710968864144,-501.54180628,0.000479,2]
[319791482,1710968864169,-466.54027421,0.00048993,15]
[319791483,1710968864193,-311.3486235,0.00049998,2]
[319791484,1710968864218,-550.0,0.00049999,60]
[319791485,1710968864242,-17161.4711409,0.0005,2]
[319791563,1710969033001,-227.1917934,0.00052044,2]
[319791565,1710969033010,-158.199714,0.00052343,2]
[319791566,1710969033020,-1240.384408,0.00052458,120]
[319791568,1710969033029,-171.0339857,0.000528,14]
[319791569,1710969033038,-17.69348572,0.000529,2]
[319791570,1710969033049,-483.84832056,0.000529,2]
[319791571,1710969033058,-3054.0,0.00053113,30]
[319791572,1710969033067,-3054.0,0.00053777,30]
[319791573,1710969033077,-3054.0,0.00054441,30]
[319791575,1710969033086,-3054.0,0.00055105,30]
[319791577,1710969033095,-3054.0,0.00055769,30]
[319791578,1710969033104,-1240.384408,0.00061201,120]
[319791579,1710969033114,-181.275117,0.0006663,2]
[319791580,1710969033122,-18144.45861246,0.00067782,2]
[319791624,1710969038306,-6755.54138754,0.00067782,2]
[319791626,1710969038317,-162.214694,0.00068288,2]
[319791628,1710969038326,-500.0,0.00069942,120]
[319791630,1710969038335,-595.50722637,0.00069942,120]
[319791632,1710969038344,-385.84072389,0.00069942,120]
[319791634,1710969038353,-500.0,0.00069942,120]
[319791636,1710969038362,-241.1147741,0.00069942,120]
[319791638,1710969038371,-208.0,0.00069943,2]
[319791640,1710969038380,-1240.384408,0.00069943,120]
[319791642,1710969038389,-181.275117,0.00071171,2]
[319791644,1710969038397,-363.99633771,0.00071186,7]
[319791646,1710969038406,-1745.46601996,0.00071186,7]
[319791648,1710969038418,-137.83529372,0.00071186,7]
[319791650,1710969038426,-270.3072211,0.00071187,2]
[319791652,1710969038435,-301.38422471,0.00071847,120]
[319791654,1710969038444,-162.214694,0.00073068,2]
[319791656,1710969038453,-208.0,0.00074892,2]
[319791658,1710969038462,-1494.1502,0.00075,120]
[319791660,1710969038471,-185.00956,0.00075534,2]
[319791662,1710969038480,-181.275117,0.00075712,2]
[319791664,1710969038489,-1240.384408,0.00078686,120]
[319791666,1710969038499,-301.38422471,0.00078918,120]
[319791668,1710969038508,-35.79840478,0.00078982,31]
[319791670,1710969038519,-464.20159522,0.00078982,31]
[319791672,1710969038528,-500.0,0.00078982,2]
[319791674,1710969038537,-615.1424719,0.000799,2]
[319791676,1710969038545,-617.12408867,0.00079917,7]
[319791678,1710969038554,-361.10761112,0.00079996,120]
[319791680,1710969038563,-58.7774531,0.00079996,120]
[319791682,1710969038574,-441.2225469,0.00079996,120]
[319791684,1710969038584,-229.40016192,0.00079996,120]
[319791686,1710969038593,-105.06682636,0.00079996,120]
[319791870,1710969040485,-394.93317364,0.00079996,120]
[319791872,1710969040495,-500.0,0.00079996,120]
[319791874,1710969040507,-362.30428213,0.00079996,120]
[319791876,1710969040516,-500.0,0.00079996,31]
[319791879,1710969040526,-500.0,0.00079996,31]
[319791880,1710969040535,-500.0,0.00079996,31]
[319791882,1710969040544,-500.0,0.00079996,31]
[319791885,1710969040553,-462.57986475,0.00079996,31]
[319791886,1710969040563,-369.89707908,0.00079996,31]
[319791889,1710969040572,-500.0,0.00079996,7]
[319791890,1710969040581,-500.0,0.00079996,31]
[319791892,1710969040590,-390.96,0.00079996,31]
[319791894,1710969040599,-527.15639847,0.00079996,31]
[319791897,1710969040609,-500.0,0.00079996,31]
[319791899,1710969040618,-500.0,0.00079996,31]
[319791900,1710969040628,-500.0,0.00079996,31]
[319791903,1710969040638,-194.14,0.00079996,31]
[319791904,1710969040647,-500.0,0.00079996,31]
[319791906,1710969040656,-216.02456222,0.00079996,31]
[319791909,1710969040668,-283.97543778,0.00079996,31]
[319791911,1710969040678,-630.07,0.00079996,31]
[319791913,1710969040687,-500.0,0.00079996,31]
[319791915,1710969040696,-500.0,0.00079996,31]
[319791917,1710969040705,-503.97,0.00079996,31]
[319791919,1710969040715,-500.0,0.00079996,31]
[319791921,1710969040724,-500.0,0.00079996,31]
[319791922,1710969040735,-500.0,0.00079996,31]
[319791925,1710969040747,-500.0,0.00079996,31]
[319791927,1710969040758,-500.0,0.00079996,31]
[319791929,1710969040768,-500.0,0.00079996,31]
[319791930,1710969040778,-500.0,0.00079996,31]
[319791932,1710969040787,-500.0,0.00079996,31]
[319791935,1710969040797,-500.0,0.00079996,31]
[319791937,1710969040807,-500.0,0.00079996,31]
[319791938,1710969040816,-500.0,0.00079996,31]
[319791941,1710969040827,-279.97263509,0.00079997,7]
[319791943,1710969040841,-141.8621737,0.00079997,7]
[319791945,1710969040853,-325.62849554,0.00079997,7]
[319791947,1710969040863,-1078.34246923,0.00079997,7]
[319791949,1710969040873,-616.84182065,0.00079997,7]
[319791951,1710969040884,-21877.9312885,0.00079997,4]
[319791953,1710969040898,-285.29888257,0.00079997,4]
[319791955,1710969040912,-629.1278318,0.00079997,4]
[319791958,1710969040925,-598.0205773,0.00079997,4]
[319792070,1710969043561,-224.0,0.00079996,2]
[319792072,1710969043571,-790.62778628,0.00079997,4]
[319792075,1710969043583,-2456.4572643,0.00079997,4]
[319792450,1710969187923,6009.09815511,0.0005,5]
[319792451,1710969217187,7434.40456032,0.00045,2]
[319792455,1710969400416,448.06499995,0.0003,10]
[319792456,1710969420553,24551.93500005,0.0004,2]
[319792457,1710969436793,164.0327001,0.00021848,2]
[319792538,1710970232667,-728.35709821,0.000479,2]
[319792540,1710970232676,-728.35709821,0.000529,2]
[319792542,1710970232686,-728.35709821,0.000579,2]
[319792544,1710970232695,-219.0,0.00072,2]
[319792546,1710970232704,-1047.9943246,0.00072,2]
[319792549,1710970232715,-1236.91602553,0.00072,2]
[319792551,1710970232727,-6784.00000001,0.00072,2]
[319792553,1710970232745,-298.58878624,0.00072,2]
[319792554,1710970232756,-1315.65251719,0.00072,2]
[319792757,1710970238589,-24880.55513752,0.00072,2]
[319792759,1710970238598,-150.84915085,0.00075036,2]
[319792761,1710970238608,-301.6983017,0.00076297,4]
[319792763,1710970238618,-5000.0,0.00076803,120]
[319792764,1710970238627,-182.8098,0.00077475,30]
[319792766,1710970238637,-5000.0,0.00077571,120]
[319792768,1710970238646,-219.0,0.00078117,2]
[319792770,1710970238656,-24900.0,0.00078117,2]
[319792772,1710970238665,-5000.0,0.00078347,120]
[319792774,1710970238674,-5000.0,0.0007913,120]
[319792777,1710970238683,-1000.0,0.00079475,120]
[319792778,1710970238692,-664.01712095,0.00079896,2]
[319792781,1710970238702,-5000.0,0.00079921,120]
[319792783,1710970238711,-154.8915759,0.00079994,7]
[319792784,1710970238720,-558.69128464,0.00079995,120]
[319792786,1710970238729,-343.81,0.00079995,120]
[319792789,1710970238738,-500.0,0.00079995,31]
[319792790,1710970238749,-500.0,0.00079995,31]
[319792792,1710970238759,-292.50009999,0.00079996,7]
[319792794,1710970238769,-500.0,0.00079996,31]
[319792797,1710970238778,-500.0,0.00079996,31]
[319792798,1710970238787,-500.0,0.00079996,2]
[319792800,1710970238797,-500.0,0.00079996,31]
[319792802,1710970238806,-500.0,0.00079996,31]
[319792804,1710970238815,-500.0,0.00079996,31]
[319792806,1710970238824,-500.0,0.00079996,31]
[319792808,1710970238833,-500.0,0.00079996,31]
[319792810,1710970238842,-500.0,0.00079996,31]
[319792812,1710970238851,-500.0,0.00079996,31]
[319792814,1710970238860,-526.67,0.00079996,31]
[319792821,1710970238955,-500.0,0.00079996,31]
[319792822,1710970238965,-500.0,0.00079996,31]
[319792823,1710970238974,-500.0,0.00079996,31]
[319792824,1710970238983,-500.0,0.00079996,31]
[319792826,1710970238992,-500.0,0.00079996,31]
[319792828,1710970239003,-500.0,0.00079996,31]
[319792830,1710970239012,-500.0,0.00079996,31]
[319792832,1710970239021,-500.0,0.00079996,31]
[319792834,1710970239030,-500.0,0.00079996,31]
[319792836,1710970239039,-500.0,0.00079996,31]
[319792838,1710970239049,-500.0,0.00079996,31]
[319792840,1710970239058,-500.0,0.00079996,31]
[319792842,1710970239067,-500.0,0.00079996,31]
[319792844,1710970239076,-500.0,0.00079996,31]
[319792846,1710970239085,-530.78,0.00079996,31]
[319792848,1710970239094,-500.0,0.00079996,31]
[319792850,1710970239102,-559.4242566,0.00079996,31]
[319792852,1710970239111,-500.0,0.00079996,31]
[319792854,1710970239120,-623.54,0.00079996,31]
[319792856,1710970239129,-500.0,0.00079996,31]
[319792858,1710970239138,-500.0,0.00079996,31]
[319792860,1710970239147,-524.52,0.00079996,31]
[319792862,1710970239156,-417.14495121,0.00079996,31]
[319792863,1710970239165,-455.46000005,0.00079996,21]
[319792866,1710970239175,-500.0,0.00079996,31]
[319792868,1710970239184,-500.0,0.00079996,31]
[319792870,1710970239193,-500.0,0.00079996,31]
[319792872,1710970239202,-500.0,0.00079996,31]
[319792874,1710970239212,-500.0,0.00079996,31]
[319792876,1710970239221,-500.0,0.00079996,31]
[319792877,1710970239231,-535.19,0.00079996,31]
[319792880,1710970239242,-500.0,0.00079996,31]
[319792881,1710970239255,-3516.33,0.00079996,31]
[319792883,1710970239265,-500.0,0.00079996,31]
[319792886,1710970239276,-500.0,0.00079996,31]
[319792887,1710970239287,-500.0,0.00079996,31]
[319792889,1710970239296,-500.0,0.00079996,31]
[319792892,1710970239308,-500.0,0.00079996,31]
[319792893,1710970239317,-346.81,0.00079996,31]
[319792895,1710970239326,-539.02428025,0.00079996,31]
[319792897,1710970239336,-500.0,0.00079996,31]
[319792899,1710970239347,-333.33,0.00079996,31]
[319792901,1710970239356,-29662.28114228,0.00079999,61]
[319792903,1710970239366,-3391.51855098,0.0008,41]
[319792976,1710970242456,-500.0,0.00079995,31]
[319792977,1710970242466,-500.0,0.00079996,31]
[319792978,1710970242476,-9862.29274501,0.0008,41]
[319792979,1710970242488,-11746.18870401,0.0008,41]
[319792980,1710970242497,-381.54,0.00080269,31]
[319792981,1710970242507,-500.0,0.00080269,31]
[319792983,1710970242517,-500.0,0.00080269,31]
[319792985,1710970242527,-300.72624672,0.00080269,31]
[319792987,1710970242537,-586.83,0.00080269,31]
[319792989,1710970242547,-500.0,0.00080269,31]
[319792990,1710970242556,-500.0,0.00080269,31]
[319792992,1710970242566,-500.0,0.00080269,31]
[319792993,1710970242575,-500.0,0.00080269,31]
[319792994,1710970242584,-500.0,0.00080269,31]
[319792995,1710970242594,-500.0,0.00080269,31]
[319792996,1710970242603,-500.0,0.00080269,31]
[319792997,1710970242613,-353.27887836,0.00080269,31]
[319792998,1710970242622,-502.92,0.0008027,31]
[319792999,1710970242632,-366.23,0.0008027,31]
[319793000,1710970242642,-500.0,0.0008027,31]
[319793001,1710970242651,-500.0,0.0008027,31]
[319793002,1710970242660,-500.0,0.0008027,31]
[319793003,1710970242669,-368.94110253,0.0008027,31]
[319793004,1710970242681,-3147.38889747,0.0008027,31]
[319793005,1710970242691,-500.0,0.0008027,31]
[319793006,1710970242700,-500.0,0.0008027,31]
[319793007,1710970242709,-500.0,0.0008027,31]
[319793008,1710970242718,-500.0,0.0008027,31]
[319793009,1710970242727,-500.0,0.0008027,31]
[319793010,1710970242736,-500.0,0.00080543,31]
[319793011,1710970242746,-167.17,0.00080543,31]
[319793012,1710970242756,-500.0,0.00080543,31]
[319793013,1710970242765,-461.09,0.00080543,31]
[319793014,1710970242774,-500.0,0.00080544,31]
[319793015,1710970242784,-500.0,0.00080544,31]
[319793016,1710970242793,-500.0,0.00080544,31]
[319793017,1710970242802,-3516.33,0.00080544,31]
[319793018,1710970242811,-500.0,0.00080544,31]
[319793019,1710970242820,-500.0,0.00080544,31]
[319793020,1710970242829,-500.0,0.00080544,31]
[319793021,1710970242838,-447.6020648,0.00080544,31]
[319793022,1710970242847,-500.0,0.00080544,31]
[319793023,1710970242856,-5000.0,0.00080721,120]
[319793024,1710970242865,-500.0,0.00080817,31]
[319793025,1710970242874,-500.0,0.00080817,31]